fUST/lending_fUST_20250208
["ID","MTS","AMOUNT","RATE_DAILY","PERIOD"]
[352188679,1738984256224,-500.0,0.00011643,2]
[352188680,1738984256235,-500.0,0.00011643,2]
[352188681,1738984256245,-1244.41,0.00011643,2]
[352188682,1738984256256,-1329.47,0.00011643,2]
[352188683,1738984256265,-610.8,0.00011643,2]
[352188684,1738984256274,-500.0,0.00011643,2]
[352188685,1738984256284,-500.0,0.00011643,2]
[352188686,1738984256294,-3126.46,0.00011643,2]
[352188687,1738984256303,-500.0,0.00011643,2]
[352188688,1738984256312,-1269.35,0.00011643,2]
[352188689,1738984256322,-2915.61,0.00011643,2]
[352188690,1738984256332,-500.0,0.00011643,2]
[352188691,1738984256341,-372.74464317,0.00011643,2]
[352188692,1738984256350,-875.66,0.00011643,2]
[352188693,1738984256359,-1969.02,0.00011643,2]
[352188694,1738984256369,-500.0,0.00011643,2]
[352188695,1738984256379,-624.66,0.00011643,2]
[352188696,1738984256389,-592.41063222,0.00011643,2]
[352188697,1738984256399,-1304.76,0.00011643,2]
[352188698,1738984256408,-1324.94,0.00011643,2]
[352188699,1738984256418,-927.97,0.00011643,2]
[352188700,1738984256428,-1186.75,0.00011643,2]
[352188701,1738984256438,-582.07,0.00011643,2]
[352188702,1738984256447,-500.0,0.00011643,2]
[352188703,1738984256456,-2606.29,0.00011643,2]
[352188704,1738984256465,-1035.57,0.00011643,2]
[352188705,1738984256474,-1278.2,0.00011643,2]
[352188706,1738984256484,-543.28,0.00011643,2]
[352188707,1738984256493,-1204.67,0.00011643,2]
[352188708,1738984256502,-1210.87,0.00011643,2]
[352188709,1738984256511,-620.63,0.00011643,2]
[352188710,1738984256520,-503.67260431,0.00011643,2]
[352188711,1738984256529,-500.0,0.00011643,2]
[352188712,1738984256539,-256.43707196,0.00011643,2]
[352188713,1738984256555,-741.32642241,0.00011643,2]
[352188714,1738984256702,-1434.95,0.00010959,2]
[352188715,1738984256711,-5737.27631319,0.00011643,2]
[352188716,1738984256730,-500.0,0.00010958,2]
[352188717,1738984256739,-32616.47019244,0.00011643,2]
[352188718,1738984256749,-500.0,0.00011643,2]
[352188719,1738984256758,-3531.48,0.00011643,2]
[352188720,1738984256767,-554.93,0.00011643,2]
[352188721,1738984256776,-780.45,0.00011643,2]
[352188722,1738984256786,-11122.78,0.00011643,2]
[352188723,1738984256795,-1541.71,0.00011643,2]
[352188724,1738984256804,-500.0,0.00011643,2]
[352188725,1738984256813,-1219.21,0.00011643,2]
[352188726,1738984256822,-1020.67,0.00011643,2]
[352188727,1738984256831,-932.95,0.00011643,2]
[352188728,1738984256840,-468.83,0.00011643,2]
[352188729,1738984256850,-500.0,0.00011643,2]
[352188730,1738984256859,-500.0,0.00011643,2]
[352188731,1738984256869,-537.87224709,0.00011643,2]
[352188732,1738984256878,-169.41543609,0.00011643,2]
[352188733,1738984256888,-741.28,0.00011643,2]
[352188734,1738984256897,-500.0,0.00011643,2]
[352188735,1738984256906,-748.65,0.00011643,2]
[352188736,1738984256915,-1472.61,0.00011643,2]
[352188737,1738984256924,-500.0,0.00011643,2]
[352188738,1738984256934,-2572.05,0.00011643,2]
[352188739,1738984256943,-500.0,0.00011643,2]
[352188740,1738984256952,-661.45,0.00011643,2]
[352188741,1738984256961,-2244.42,0.00011643,2]
[352188742,1738984256970,-500.0,0.00011643,2]
[352188743,1738984256979,-975.44,0.00011643,2]
[352188744,1738984256988,-500.0,0.00011643,2]
[352188745,1738984256998,-1234.68,0.00011643,2]
[352188746,1738984257008,-901.07,0.00011643,2]
[352188747,1738984257017,-1266.10174557,0.00011643,2]
[352188748,1738984257030,-1316.38825443,0.00011643,2]
[352188749,1738984257039,-657.79,0.00011643,2]
[352188750,1738984257049,-500.0,0.00011643,2]
[352188751,1738984257058,-596.64,0.00011643,2]
[352188752,1738984257068,-1448.85,0.00011643,2]
[352188753,1738984257077,-4568.74,0.00011643,2]
[352188754,1738984257087,-524.89519878,0.00011643,2]
[352188755,1738984257096,-596.22,0.00011643,2]
[352188756,1738984257105,-1621.40675094,0.00011643,2]
[352188757,1738984257116,-948.37496195,0.00011643,2]
[352188801,1738985432310,-300.0,9.838e-05,2]
[352188802,1738985432319,-75.0,9.839e-05,2]
[352188821,1738985438095,-5769.97946017,9.839e-05,2]
[352188822,1738985438107,-18379.94200383,9.839e-05,2]
[352188823,1738985438117,-500.0,0.00010683,2]
[352188824,1738985438127,-246.40650609,0.00010683,2]
[352188825,1738985438137,-154.0,0.00010684,2]
[352188826,1738985438147,-154.0,0.00010684,2]
[352188827,1738985438157,-154.0,0.00010684,2]
[352188828,1738985438166,-154.0,0.00010684,2]
[352188829,1738985438176,-154.0,0.00010684,2]
[352188830,1738985438186,-154.0,0.00010684,2]
[352188831,1738985438195,-154.0,0.00010684,2]
[352188832,1738985438205,-154.0,0.00010684,2]
[352188833,1738985438215,-154.0,0.00010684,2]
[352188834,1738985438225,-154.0,0.00010684,2]
[352188835,1738985438235,-154.0,0.00010684,2]
[352188836,1738985438246,-154.0,0.00010684,2]
[352188837,1738985438256,-154.0,0.00010684,2]
[352188838,1738985438266,-154.0,0.00010684,2]
[352188839,1738985438276,-154.0,0.00010684,2]
[352188840,1738985438286,-154.0,0.00010684,2]
[352188841,1738985438296,-154.0,0.00010684,2]
[352188842,1738985438306,-154.0,0.00010684,2]
[352188843,1738985438316,-420.0,0.00010822,2]
[352188844,1738985438326,-191.00442517,0.00010858,2]
[352188845,1738985438336,-5074.21083738,0.00010858,2]
[352188846,1738985438349,-8637.03575649,0.00010858,2]
[352188847,1738985438361,-24320.9499349,0.00010858,2]
[352188848,1738985438371,-230.45638155,0.00010957,2]
[352188849,1738985438381,-500.0,0.00010957,2]
[352188851,1738985438390,-500.0,0.00010957,2]
[352188853,1738985438400,-515.78386974,0.00010957,2]
[352188855,1738985438409,-500.0,0.00010958,2]
[352188857,1738985438419,-194.56125134,0.00010958,2]
[352188861,1738985438430,-500.0,0.00010958,2]
[352188863,1738985438439,-500.0,0.00010958,2]
[352188865,1738985438448,-503.68311422,0.00010958,2]
[352188867,1738985438458,-500.0,0.00010958,2]
[352188869,1738985438467,-500.0,0.00010958,2]
[352188870,1738985438476,-500.0,0.00010958,2]
[352188871,1738985438486,-514.61901704,0.00010958,2]
[352188872,1738985438496,-502.55940711,0.00010958,2]
[352188873,1738985438505,-503.44206746,0.00010958,2]
[352188874,1738985438515,-500.0,0.00010958,2]
[352188875,1738985438524,-500.0,0.00010958,2]
[352188876,1738985438534,-500.0,0.00010958,2]
[352188877,1738985438543,-500.0,0.00010958,2]
[352188878,1738985438552,-354.61194659,0.00010958,2]
[352188879,1738985438562,-500.0,0.00010958,2]
[352188880,1738985438571,-500.0,0.00010958,2]
[352188881,1738985438581,-500.0,0.00010958,2]
[352188882,1738985438590,-500.0,0.00010958,2]
[352188883,1738985438600,-500.0,0.00010958,2]
[352188884,1738985438610,-500.0,0.00010958,2]
[352188885,1738985438620,-503.54329957,0.00010958,2]
[352188886,1738985438630,-597.30409777,0.00010958,2]
[352188887,1738985438639,-500.0,0.00010958,2]
[352188888,1738985438649,-500.0,0.00010958,2]
[352188889,1738985438660,-500.0,0.00010958,2]
[352188890,1738985438669,-500.0,0.00010958,2]
[352188891,1738985438678,-500.0,0.00010958,2]
[352188892,1738985438688,-500.0,0.00010958,2]
[352188893,1738985438697,-500.90731688,0.00010958,2]
[352188894,1738985438706,-479.85535147,0.00010958,2]
[352188895,1738985438715,-500.0,0.00010958,2]
[352188896,1738985438725,-500.0,0.00010958,2]
[352188897,1738985438734,-500.0,0.00010958,2]
[352188898,1738985438744,-500.0,0.00010958,2]
[352188899,1738985438753,-502.82824354,0.00010958,2]
[352188900,1738985438763,-500.0,0.00010958,2]
[352188901,1738985438772,-500.0,0.00010958,2]
[352188902,1738985438782,-500.0,0.00010958,2]
[352188903,1738985438791,-500.0,0.00010958,2]
[352188904,1738985438800,-152.83081549,0.00010958,2]
[352188905,1738985438810,-500.0,0.00010958,2]
[352188906,1738985438820,-500.0,0.00010958,2]
[352188907,1738985438830,-408.10295356,0.00010958,2]
[352188908,1738985438840,-502.35354507,0.00010958,2]
[352188909,1738985438850,-500.0,0.00010958,2]
[352188910,1738985438859,-502.13907655,0.00010958,2]
[352188911,1738985438870,-500.0,0.00010958,2]
[352188912,1738985438880,-500.77629688,0.00010958,2]
[352188913,1738985438889,-500.0,0.00010958,2]
[352188914,1738985438899,-500.0,0.00010958,2]
[352188915,1738985438912,-501.71226598,0.00010958,2]
[352188916,1738985438925,-500.0,0.00010958,2]
[352188917,1738985438935,-500.0,0.00010958,2]
[352188918,1738985438944,-520.68455006,0.00010958,2]
[352188919,1738985438954,-500.0,0.00010958,2]
[352188920,1738985438963,-500.0,0.00010958,2]
[352188921,1738985438974,-501.87996717,0.00010958,2]
[352188922,1738985438984,-312.40296877,0.00010958,2]
[352188923,1738985438997,-500.0,0.00010958,2]
[352188924,1738985439007,-500.0,0.00010958,2]
[352188925,1738985439017,-500.0,0.00010958,2]
[352188926,1738985439027,-502.67640168,0.00010958,2]
[352188927,1738985439036,-500.0,0.00010958,2]
[352188928,1738985439046,-501.94344663,0.00010958,2]
[352188929,1738985439055,-500.0,0.00010958,2]
[352188930,1738985439065,-500.65593778,0.00010958,2]
[352188931,1738985439074,-320.47846163,0.00010958,2]
[352188932,1738985439084,-500.0,0.00010958,2]
[352188933,1738985439093,-500.0,0.00010958,2]
[352188934,1738985439102,-500.0,0.00010958,2]
[352188935,1738985439112,-500.0,0.00010958,2]
[352188936,1738985439121,-502.61935459,0.00010958,2]
[352188937,1738985439131,-614.15177362,0.00010958,2]
[352188938,1738985439140,-500.0,0.00010958,2]
[352188939,1738985439150,-503.58949611,0.00010958,2]
[352188940,1738985439160,-500.0,0.00010958,2]
[352188941,1738985439169,-500.0,0.00010958,2]
[352188942,1738985439178,-500.0,0.00010958,2]
[352188943,1738985439189,-500.0,0.00010958,2]
[352188944,1738985439199,-500.0,0.00010958,2]
[352188945,1738985439209,-500.0,0.00010958,2]
[352188946,1738985439218,-500.0,0.00010958,2]
[352188947,1738985439228,-500.0,0.00010958,2]
[352188948,1738985439237,-501.40233573,0.00010958,2]
[352188949,1738985439247,-286.32721207,0.00010958,2]
[352188950,1738985439257,-500.0,0.00010958,2]
[352188951,1738985439266,-500.0,0.00010958,2]
[352188952,1738985439275,-500.0,0.00010958,2]
[352188953,1738985439285,-500.0,0.00010958,2]
[352188954,1738985439294,-500.0,0.00010958,2]
[352188955,1738985439303,-500.0,0.00010958,2]
[352188956,1738985439313,-500.0,0.00010958,2]
[352188957,1738985439323,-500.0,0.00010958,2]
[352188958,1738985439333,-500.0,0.00010958,2]
[352188959,1738985439342,-527.37516668,0.00010958,2]
[352188960,1738985439352,-500.0,0.00010958,2]
[352188961,1738985439361,-500.0,0.00010958,2]
[352188962,1738985439371,-500.0,0.00010958,2]
[352188963,1738985439380,-500.0,0.00010958,2]
[352188964,1738985439390,-500.93684788,0.00010958,2]
[352188965,1738985439399,-214.51251466,0.00010958,2]
[352188966,1738985439409,-500.0,0.00010958,2]
[352188967,1738985439419,-500.0,0.00010958,2]
[352188968,1738985439429,-500.0,0.00010958,2]
[352188969,1738985439438,-500.0,0.00010958,2]
[352188970,1738985439448,-500.0,0.00010958,2]
[352188971,1738985439458,-500.0,0.00010958,2]
[352188972,1738985439470,-502.86189205,0.00010958,2]
[352188973,1738985439481,-501.78305992,0.00010958,2]
[352188974,1738985439491,-500.0,0.00010958,2]
[352188975,1738985439502,-502.52935587,0.00010958,2]
[352188976,1738985439511,-500.0,0.00010958,2]
[352188977,1738985439521,-500.0,0.00010958,2]
[352188978,1738985439530,-500.0,0.00010958,2]
[352188979,1738985439539,-500.0,0.00010958,2]
[352188980,1738985439548,-500.0,0.00010958,2]
[352188981,1738985439558,-500.0,0.00010958,2]
[352188982,1738985439567,-502.10475968,0.00010958,2]
[352188983,1738985439784,-500.0,0.00010958,2]
[352188984,1738985439794,-500.87399058,0.00010958,2]
[352188985,1738985439803,-500.0,0.00010958,2]
[352188986,1738985439813,-500.0,0.00010958,2]
[352188987,1738985439824,-502.20629574,0.00010958,2]
[352188988,1738985439833,-500.0,0.00010958,2]
[352188989,1738985439842,-502.41501435,0.00010958,2]
[352188990,1738985439851,-605.77,0.00010958,2]
[352188991,1738985439860,-591.75442031,0.00010958,2]
[352188992,1738985439870,-501.18379253,0.00010958,2]
[352188993,1738985439879,-500.0,0.00010958,2]
[352188994,1738985439888,-500.0,0.00010958,2]
[352188995,1738985439897,-296.44332737,0.00010958,2]
[352188996,1738985439906,-500.0,0.00010958,2]
[352188997,1738985439916,-500.0,0.00010958,2]
[352188998,1738985439930,-500.0,0.00010958,2]
[352188999,1738985439938,-500.0,0.00010958,2]
[352189000,1738985439947,-500.0,0.00010958,2]
[352189001,1738985439956,-503.49528579,0.00010958,2]
[352189002,1738985439966,-500.0,0.00010958,2]
[352189003,1738985439975,-500.0,0.00010958,2]
[352189004,1738985439985,-500.0,0.00010958,2]
[352189005,1738985439996,-500.0,0.00010958,2]
[352189006,1738985440007,-508.93314052,0.00010958,2]
[352189007,1738985440016,-521.57153988,0.00010958,2]
[352189008,1738985440025,-211.88749262,0.00010958,2]
[352189009,1738985440034,-500.0,0.00010958,2]
[352189010,1738985440043,-503.52100618,0.00010958,2]
[352189011,1738985440052,-500.0,0.00010958,2]
[352189012,1738985440061,-176.98050047,0.00010958,2]
[352189013,1738985440071,-500.0,0.00010958,2]
[352189014,1738985440080,-500.0,0.00010958,2]
[352189015,1738985440090,-501.95742293,0.00010958,2]
[352189016,1738985440099,-500.0,0.00010958,2]
[352189017,1738985440109,-750.71,0.00010958,2]
[352189018,1738985440118,-501.16015369,0.00010958,2]
[352189019,1738985440127,-509.53343454,0.00010958,2]
[352189020,1738985440137,-502.24448422,0.00010958,2]
[352189021,1738985440146,-500.0,0.00010958,2]
[352189022,1738985440155,-501.09197207,0.00010958,2]
[352189023,1738985440164,-500.0,0.00010958,2]
[352189024,1738985440173,-500.0,0.00010958,2]
[352189025,1738985440183,-500.0,0.00010958,2]
[352189026,1738985440192,-500.0,0.00010958,2]
[352189027,1738985440201,-500.0,0.00010958,2]
[352189028,1738985440210,-500.0,0.00010958,2]
[352189029,1738985440219,-789.2,0.00010958,2]
[352189030,1738985440228,-1032.44,0.00010958,2]
[352189031,1738985440236,-500.0,0.00010958,2]
[352189032,1738985440247,-500.0,0.00010958,2]
[352189033,1738985440257,-500.0,0.00010958,2]
[352189034,1738985440266,-500.0,0.00010958,2]
[352189035,1738985440275,-500.0,0.00010958,2]
[352189036,1738985440284,-500.0,0.00010958,2]
[352189037,1738985440293,-501.3111807,0.00010958,2]
[352189038,1738985440303,-500.0,0.00010958,2]
[352189039,1738985440312,-500.0,0.00010958,2]
[352189040,1738985440321,-543.05,0.00010958,2]
[352189041,1738985440330,-500.0,0.00010958,2]
[352189042,1738985440339,-500.0,0.00010958,2]
[352189044,1738985440348,-500.0,0.00010958,2]
[352189045,1738985440358,-500.0,0.00010958,2]
[352189046,1738985440367,-500.0,0.00010958,2]
[352189047,1738985440377,-503.20686269,0.00010958,2]
[352189048,1738985440386,-500.0,0.00010958,2]
[352189049,1738985440395,-505.80442311,0.00010958,2]
[352189051,1738985440407,-500.0,0.00010958,2]
[352189052,1738985440417,-501.62233902,0.00010958,2]
[352189053,1738985440426,-500.0,0.00010958,2]
[352189054,1738985440435,-548.48,0.00010958,2]
[352189055,1738985440444,-500.0,0.00010958,2]
[352189056,1738985440454,-500.0,0.00010958,2]
[352189057,1738985440463,-500.0,0.00010958,2]
[352189058,1738985440472,-500.0,0.00010958,2]
[352189059,1738985440481,-500.0,0.00010958,2]
[352189060,1738985440491,-1189.78,0.00010958,2]
[352189061,1738985440502,-500.0,0.00010958,2]
[352189062,1738985440511,-500.0,0.00010958,2]
[352189063,1738985440521,-562.14646434,0.00010958,2]
[352189064,1738985440530,-500.0,0.00010958,2]
[352189065,1738985440539,-500.0,0.00010958,2]
[352189066,1738985440550,-500.0,0.00010958,2]
[352189067,1738985440559,-500.0,0.00010958,2]
[352189068,1738985440568,-500.0,0.00010958,2]
[352189069,1738985440578,-1218.68,0.00010958,2]
[352189070,1738985440587,-500.0,0.00010958,2]
[352189071,1738985440596,-500.0,0.00010958,2]
[352189072,1738985440605,-500.0,0.00010958,2]
[352189073,1738985440614,-500.0,0.00010958,2]
[352189074,1738985440623,-500.0,0.00010958,2]
[352189075,1738985440632,-500.0,0.00010958,2]
[352189076,1738985440642,-500.0,0.00010958,2]
[352189077,1738985440651,-500.0,0.00010958,2]
[352189078,1738985440660,-500.0,0.00010958,2]
[352189079,1738985440669,-502.44028654,0.00010958,2]
[352189080,1738985440678,-500.0,0.00010958,2]
[352189081,1738985440687,-500.0,0.00010958,2]
[352189082,1738985440697,-500.0,0.00010958,2]
[352189083,1738985440706,-500.0,0.00010958,2]
[352189084,1738985440715,-500.0,0.00010958,2]
[352189085,1738985440725,-500.0,0.00010958,2]
[352189086,1738985440733,-500.0,0.00010958,2]
[352189087,1738985440743,-885.63,0.00010958,2]
[352189088,1738985440753,-207.72769697,0.00010958,2]
[352189089,1738985440762,-500.0,0.00010958,2]
[352189090,1738985440771,-501.62290401,0.00010958,2]
[352189091,1738985440780,-500.0,0.00010958,2]
[352189092,1738985440789,-500.0,0.00010958,2]
[352189093,1738985440798,-500.0,0.00010958,2]
[352189094,1738985440807,-500.0,0.00010958,2]
[352189095,1738985440816,-500.0,0.00010958,2]
[352189096,1738985440826,-500.0,0.00010958,2]
[352189097,1738985440835,-500.0,0.00010958,2]
[352189098,1738985440844,-500.49832494,0.00010958,2]
[352189099,1738985440853,-500.0,0.00010958,2]
[352189100,1738985440862,-504.96310756,0.00010958,2]
[352189101,1738985440871,-500.0,0.00010958,2]
[352189102,1738985440880,-500.0,0.00010958,2]
[352189103,1738985440889,-500.0,0.00010958,2]
[352189104,1738985440898,-504.10515674,0.00010958,2]
[352189105,1738985440908,-500.0,0.00010958,2]
[352189106,1738985440917,-500.0,0.00010958,2]
[352189107,1738985440931,-500.0,0.00010958,2]
[352189108,1738985440940,-500.0,0.00010958,2]
[352189109,1738985440949,-500.0,0.00010958,2]
[352189110,1738985440959,-500.0,0.00010958,2]
[352189111,1738985440968,-501.21625667,0.00010958,2]
[352189112,1738985440977,-500.0,0.00010958,2]
[352189113,1738985440986,-500.0,0.00010958,2]
[352189114,1738985440996,-500.51128462,0.00010958,2]
[352189115,1738985441005,-500.0,0.00010958,2]
[352189116,1738985441015,-502.78673095,0.00010958,2]
[352189117,1738985441024,-500.0,0.00010958,2]
[352189118,1738985441033,-500.0,0.00010958,2]
[352189119,1738985441042,-500.0,0.00010958,2]
[352189120,1738985441052,-500.0,0.00010958,2]
[352189121,1738985441061,-502.31895964,0.00010958,2]
[352189122,1738985441070,-559.9,0.00010958,2]
[352189123,1738985441079,-502.8538781,0.00010958,2]
[352189124,1738985441088,-500.0,0.00010958,2]
[352189125,1738985441098,-500.72410168,0.00010958,2]
[352189126,1738985441107,-500.0,0.00010958,2]
[352189127,1738985441116,-500.0,0.00010958,2]
[352189128,1738985441125,-1250.39,0.00010958,2]
[352189129,1738985441135,-500.0,0.00010958,2]
[352189130,1738985441144,-500.0,0.00010958,2]
[352189131,1738985441153,-501.9405719,0.00010958,2]
[352189132,1738985441162,-501.50846513,0.00010958,2]
[352189133,1738985441171,-500.0,0.00010958,2]
[352189134,1738985441180,-500.0,0.00010958,2]
[352189135,1738985441189,-509.43292773,0.00010958,2]
[352189136,1738985441199,-513.56787768,0.00010958,2]
[352189137,1738985441208,-540.43901867,0.00010958,2]
[352189138,1738985441218,-500.0,0.00010958,2]
[352189139,1738985441227,-500.0,0.00010958,2]
[352189140,1738985441236,-500.0,0.00010958,2]
[352189141,1738985441245,-500.0,0.00010958,2]
[352189142,1738985441254,-500.0,0.00010958,2]
[352189143,1738985441263,-500.0,0.00010958,2]
[352189144,1738985441272,-500.0,0.00010958,2]
[352189145,1738985441281,-286.03603718,0.00010958,2]
[352189146,1738985441291,-500.0,0.00010958,2]
[352189147,1738985441300,-500.0,0.00010958,2]
[352189148,1738985441309,-500.0,0.00010958,2]
[352189149,1738985441319,-500.0,0.00010958,2]
[352189150,1738985441329,-500.0,0.00010958,2]
[352189151,1738985441338,-500.0,0.00010958,2]
[352189152,1738985441347,-500.0,0.00010958,2]
[352189153,1738985441356,-500.0,0.00010958,2]
[352189154,1738985441365,-500.0,0.00010958,2]
[352189155,1738985441375,-500.0,0.00010958,2]
[352189156,1738985441384,-500.0,0.00010958,2]
[352189157,1738985441393,-500.0,0.00010958,2]
[352189158,1738985441402,-500.0,0.00010958,2]
[352189159,1738985441411,-500.0,0.00010958,2]
[352189160,1738985441420,-500.0,0.00010958,2]
[352189161,1738985441429,-500.0,0.00010958,2]
[352189162,1738985441438,-500.0,0.00010958,2]
[352189163,1738985441447,-500.0,0.00010958,2]
[352189164,1738985441456,-500.0,0.00010958,2]
[352189165,1738985441465,-500.0,0.00010958,2]
[352189166,1738985441475,-500.0,0.00010958,2]
[352189167,1738985441484,-500.0,0.00010958,2]
[352189168,1738985441493,-501.62275878,0.00010958,2]
[352189169,1738985441503,-500.0,0.00010958,2]
[352189170,1738985441512,-500.0,0.00010958,2]
[352189171,1738985441521,-500.0,0.00010958,2]
[352189172,1738985441530,-500.0,0.00010958,2]
[352189173,1738985441539,-500.0,0.00010958,2]
[352189174,1738985441549,-839.17,0.00010958,2]
[352189175,1738985441558,-500.0,0.00010958,2]
[352189176,1738985441567,-500.0,0.00010958,2]
[352189177,1738985441576,-500.0,0.00010958,2]
[352189178,1738985441585,-504.10406928,0.00010958,2]
[352189179,1738985441594,-500.0,0.00010958,2]
[352189180,1738985441603,-3004.68,0.00010958,2]
[352189181,1738985441612,-504.44275819,0.00010958,2]
[352189182,1738985441621,-622.48,0.00010958,2]
[352189183,1738985441630,-1216.46,0.00010958,2]
[352189184,1738985441639,-500.0,0.00010958,2]
[352189185,1738985441648,-500.0,0.00010958,2]
[352189186,1738985441658,-500.0,0.00010958,2]
[352189187,1738985441667,-500.0,0.00010958,2]
[352189188,1738985441676,-2717.17,0.00010958,2]
[352189189,1738985441685,-1137.3,0.00010958,2]
[352189190,1738985441695,-501.55549233,0.00010958,2]
[352189191,1738985441703,-1104.28,0.00010958,2]
[352189192,1738985441712,-500.0,0.00010958,2]
[352189193,1738985441721,-2794.13,0.00010958,2]
[352189194,1738985441730,-500.0,0.00010958,2]
[352189195,1738985441740,-580.88849509,0.00010958,2]
[352189196,1738985441750,-12543.51,0.00010958,2]
[352189197,1738985441759,-500.0,0.00010958,2]
[352189198,1738985441768,-504.11795159,0.00010958,2]
[352189199,1738985441777,-518.84,0.00010958,2]
[352189200,1738985441786,-1886.98,0.00010958,2]
[352189201,1738985441795,-557.82,0.00010958,2]
[352189202,1738985441804,-504.59543926,0.00010958,2]
[352189203,1738985441814,-500.0,0.00010958,2]
[352189204,1738985441823,-500.0,0.00010958,2]
[352189205,1738985441832,-500.0,0.00010958,2]
[352189206,1738985441841,-500.0,0.00010958,2]
[352189207,1738985441850,-500.0,0.00010958,2]
[352189208,1738985441859,-500.0,0.00010958,2]
[352189209,1738985441868,-500.0,0.00010958,2]
[352189210,1738985441877,-245.41839419,0.00010958,2]
[352189211,1738985441887,-914.63,0.00010958,2]
[352189212,1738985441895,-500.0,0.00010958,2]
[352189213,1738985441905,-500.0,0.00010958,2]
[352189214,1738985441914,-500.0,0.00010958,2]
[352189215,1738985441926,-509.43034823,0.00010958,2]
[352189216,1738985441935,-500.0,0.00010958,2]
[352189217,1738985441944,-500.0,0.00010958,2]
[352189218,1738985441953,-500.0,0.00010958,2]
[352189219,1738985441963,-500.0,0.00010958,2]
[352189220,1738985441973,-500.0,0.00010958,2]
[352189221,1738985441982,-500.0,0.00010958,2]
[352189222,1738985441991,-500.0,0.00010958,2]
[352189223,1738985442002,-500.0,0.00010958,2]
[352189224,1738985442011,-500.34010031,0.00010958,2]
[352189225,1738985442023,-500.0,0.00010958,2]
[352189226,1738985442032,-500.0,0.00010958,2]
[352189227,1738985442041,-2420.52,0.00010958,2]
[352189228,1738985442051,-500.0,0.00010958,2]
[352189229,1738985442060,-500.78307202,0.00010958,2]
[352189230,1738985442069,-500.0,0.00010958,2]
[352189231,1738985442079,-500.0,0.00010958,2]
[352189232,1738985442088,-500.0,0.00010958,2]
[352189233,1738985442097,-949.27,0.00010958,2]
[352189234,1738985442106,-500.0,0.00010958,2]
[352189235,1738985442116,-500.0,0.00010958,2]
[352189236,1738985442125,-500.0,0.00010958,2]
[352189237,1738985442135,-500.0,0.00010958,2]
[352189238,1738985442144,-500.0,0.00010958,2]
[352189239,1738985442153,-508.69,0.00010958,2]
[352189240,1738985442162,-500.0,0.00010958,2]
[352189241,1738985442171,-500.0,0.00010958,2]
[352189242,1738985442181,-500.0,0.00010958,2]
[352189243,1738985442189,-500.0,0.00010958,2]
[352189244,1738985442199,-500.0,0.00010958,2]
[352189245,1738985442208,-256.23706644,0.00010958,2]
[352189246,1738985442218,-500.0,0.00010958,2]
[352189247,1738985442229,-336.50399263,0.00010958,2]
[352189248,1738985442239,-500.0,0.00010958,2]
[352189249,1738985442251,-9013.31,0.00010958,2]
[352189250,1738985442259,-9013.31,0.00010958,2]
[352189251,1738985442269,-9013.31,0.00010958,2]
[352189252,1738985442278,-501.55257653,0.00010958,2]